bitfinex/quotes_ETHUSD_20251011
["timestamp","ask_amount","ask_price","bid_price","bid_amount"]
[1760210260649,0.03268517,3777.6,3775.6,2.64854827]
[1760210260821,0.03268517,3777.6,3773.7,2.64984901]
[1760210260822,2.64770411,3776.9,3774.8,0.5721]
[1760210260997,0.03268517,3776.8,3775.4,0.4378]
[1760210261191,2.64754076,3777.1,3775.6,2.64858565]
[1760210261391,0.47338517,3777.0,3775.4,0.4378]
[1760210261632,3.12105902,3777.0,3775.9,2.64836304]
[1760210261930,0.03268517,3777.0,3776.1,2.64823495]
[1760210262096,0.03268517,3777.4,3776.4,2.64802212]
[1760210262285,0.03268517,3777.4,3775.8,0.4378]
[1760210262286,0.132,3776.5,3776.2,2.64812558]
[1760210262648,0.663,3777.7,3769.6,4.92]
[1760210262649,0.6913,3775.1,3769.6,4.92]
[1760210262931,2.65230883,3770.3,3769.6,4.92]
[1760210263182,5.866252,3769.7,3769.6,4.92]
[1760210263315,6.306952,3769.7,3769.6,4.92]
[1760210264439,5.866252,3769.7,3769.6,4.92]
[1760210264933,5.866252,3769.7,3769.6,4.87]
[1760210265315,5.866252,3769.7,3769.6,4.872]
[1760210266412,6.1745782,3769.7,3769.6,4.872]
[1760210266646,0.2283,3770.9,3769.8,2.65264232]
[1760210266811,0.3083262,3770.2,3769.6,5.3592]
[1760210267007,5.866252,3770.4,3769.8,2.65264224]
[1760210267211,5.866252,3770.4,3769.6,5.3592]
[1760210267212,0.3083262,3770.5,3769.9,0.3272259]
[1760210267646,0.3083262,3770.5,3769.9,0.3007]
[1760210268030,0.663,3770.8,3770.3,2.65230793]
[1760210268238,5.866252,3770.7,3770.4,0.02652238]
[1760210268436,5.866252,3770.7,3769.9,0.3007]
[1760210268437,5.866252,3770.7,3770.3,2.65225956]
[1760210268736,5.866252,3770.7,3770.4,2.65222695]
[1760210268942,0.3083262,3770.6,3770.4,2.65222695]
[1760210269116,0.9713262,3770.8,3770.4,2.65222695]
[1760210269317,0.9713262,3770.8,3770.1,2.65243241]
[1760210269318,0.3083262,3770.6,3770.2,2.65237918]
[1760210269512,0.3083262,3770.6,3770.3,2.65230883]
[1760210269926,5.866252,3770.5,3770.3,2.65230883]
[1760210270128,5.866252,3770.5,3769.9,2.65253331]
[1760210270129,5.866252,3770.5,3769.6,4.872]
[1760210270362,0.3083262,3770.3,3769.7,2.65271149]
[1760210270515,5.866252,3770.2,3769.7,2.65271149]
[1760210270714,0.3083262,3770.3,3769.6,4.872]
[1760210271031,5.866252,3770.2,3769.6,4.872]
[1760210271231,0.3083262,3770.9,3769.6,4.872]
[1760210271444,5.866252,3770.8,3770.1,2.65238238]
[1760210271646,0.4407,3771.8,3769.6,4.872]
[1760210271647,5.866252,3770.6,3769.6,4.872]
[1760210271841,5.866252,3770.3,3769.7,0.51727]
[1760210272027,5.866252,3770.3,3769.8,2.65264785]
[1760210272736,5.866252,3770.3,3770.0,0.132]
[1760210274047,5.998252,3770.3,3769.6,5.004]
[1760210274216,5.866252,3770.2,3769.7,2.65272613]
[1760210274416,5.866252,3770.2,3769.6,7.65678969]
[1760210274615,5.866252,3770.2,3769.7,2.65272856]
[1760210275043,5.866252,3770.2,3769.7,2.65271421]
[1760210275247,5.866252,3770.2,3769.6,7.65678807]
[1760210275550,5.866252,3770.2,3769.7,2.65270629]
[1760210275747,5.866252,3770.2,3769.8,2.65265305]
[1760210275948,0.3083262,3770.6,3769.8,0.3007]
[1760210276249,0.3083262,3770.3,3769.8,2.65265724]
[1760210276413,5.866252,3770.2,3769.9,2.65257433]
[1760210276819,5.866252,3770.2,3769.7,2.65272002]
[1760210277148,5.866252,3770.2,3769.7,3.70589202]
[1760210277351,5.866252,3770.2,3770.0,2.65251815]
[1760210277556,5.866252,3770.2,3770.1,2.65244953]
[1760210277850,1.39230499,3774.1,3770.1,2.65244953]
[1760210277851,0.4407,3771.8,3770.6,2.6520978]
[1760210278055,0.3083262,3770.9,3770.8,2.65195714]
[1760210278280,6.1745782,3770.9,3770.8,2.65195714]
[1760210278485,5.866252,3770.8,3770.7,2.65202661]
[1760210278684,5.866252,3771.9,3770.1,0.4511]
[1760210278841,0.669,3772.0,3771.2,2.65166732]
[1760210278842,5.866252,3771.3,3771.2,2.65166732]
[1760210279041,0.3083262,3771.4,3770.7,0.3007]
[1760210279289,5.866252,3771.3,3770.1,0.4511]
[1760210279654,5.866252,3771.3,3770.3,2.65230883]
[1760210279858,5.866252,3771.3,3770.9,2.65187019]
[1760210280083,0.4597,3772.6,3770.9,2.65187019]
[1760210280084,0.3083262,3771.6,3771.5,2.65146493]
[1760210280245,5.866252,3772.3,3771.0,0.3007]
[1760210280442,5.866252,3771.5,3771.0,2.65178756]
[1760210280645,0.3083262,3771.4,3770.3,0.3007]
[1760210280853,0.3083262,3771.0,3770.6,2.65209148]
[1760210281087,5.866252,3770.9,3770.5,2.65216814]
[1760210281268,5.866252,3770.9,3770.3,0.3007]
[1760210281467,5.866252,3770.9,3770.6,2.65205986]
[1760210281895,0.3083262,3770.6,3770.4,2.65223641]
[1760210282085,6.1745782,3770.6,3770.5,2.65216814]
[1760210282258,5.866252,3770.6,3770.5,2.65216814]
[1760210282595,6.1745782,3770.6,3770.5,2.65216814]
[1760210282793,5.866252,3770.6,3770.5,2.65216814]
[1760210282945,5.866252,3770.9,3770.5,2.6521299]
[1760210283151,6.1745782,3770.6,3770.5,2.6521299]
[1760210284292,6.1755782,3770.6,3770.5,2.6521299]
[1760210285660,5.867252,3770.6,3770.5,2.6521299]
[1760210286498,0.001,3770.6,3770.5,3.53956863]
[1760210286702,0.001,3770.6,3770.5,3.67156863]
[1760210286913,0.001,3770.6,3770.5,3.53956863]
[1760210287488,0.001,3770.6,3770.5,3.52654357]
[1760210288259,0.001,3770.6,3770.5,6.08014357]
[1760210288695,0.03268517,3773.5,3770.5,6.08014357]
[1760210288904,0.03268517,3773.8,3770.8,2.5536]
[1760210289198,0.03268517,3774.1,3773.2,2.65027032]
[1760210289382,0.03268517,3774.1,3771.6,2.65132602]
[1760210289383,0.03268517,3774.1,3773.3,0.026502]
[1760210289586,0.3083262,3773.7,3773.6,2.64993389]
[1760210290504,0.3083262,3773.6,3773.4,2.65012878]
[1760210290661,0.3083262,3773.2,3772.3,0.3007]
[1760210290864,0.3083262,3772.6,3772.5,2.65074904]
[1760210292314,0.3083262,3772.8,3772.7,2.65056902]
[1760210292595,0.3083262,3772.6,3770.5,2.65214007]
[1760210292785,0.3083262,3772.4,3771.3,0.3007]
[1760210293214,0.3083262,3772.4,3772.3,2.65090263]
[1760210293687,0.3083262,3773.0,3772.9,2.65048106]
[1760210293891,0.03268517,3773.5,3773.0,2.65039984]
[1760210294087,0.3083262,3773.5,3773.4,2.65012985]
[1760210294411,0.4597,3774.5,3772.8,2.65054229]
[1760210294570,0.3083262,3773.5,3773.4,2.65012985]
[1760210294769,0.3083262,3773.7,3773.6,2.6499894]
[1760210294969,0.3083262,3773.7,3773.4,2.65012985]
[1760210294970,0.3083262,3773.5,3773.4,2.65006292]
[1760210295169,0.3083262,3773.4,3773.3,2.65017085]
[1760210295417,0.3083262,3773.6,3773.5,2.65004123]
[1760210295713,0.3083262,3773.5,3772.4,2.95150725]
[1760210295872,0.3083262,3773.2,3773.1,2.65034056]
[1760210296078,0.3083262,3773.5,3773.4,2.65006659]
[1760210296309,0.03268517,3774.0,3773.1,0.3007]
[1760210296491,0.03268517,3774.3,3773.7,2.64991153]
[1760210296694,0.663,3774.4,3773.8,2.67631949]
[1760210296896,0.132,3774.1,3773.5,0.132]
[1760210297152,0.132,3774.1,3772.4,2.9459618]
[1760210297153,0.663,3774.4,3773.9,0.132]
[1760210297353,0.3083262,3774.0,3773.9,2.78174971]
[1760210297522,0.3083262,3774.0,3773.9,0.132]
[1760210297722,0.3083262,3773.4,3773.3,2.65019568]
[1760210298329,0.3083262,3773.4,3773.3,2.95089568]
[1760210298666,0.3083262,3773.8,3773.6,2.64993178]
[1760210298867,0.3083262,3773.4,3773.3,2.65013465]
[1760210299036,0.3083262,3773.4,3773.2,2.65025773]
[1760210299225,0.3083262,3773.4,3772.9,2.95114807]
[1760210299226,0.3083262,3773.4,3773.3,2.65020009]
[1760210300164,0.3083262,3773.7,3773.6,2.6499894]
[1760210301569,0.3083262,3773.5,3773.4,2.65012301]
[1760210301753,0.3083262,3773.3,3772.4,0.3007]
[1760210301950,0.3083262,3773.1,3772.8,2.65048964]
[1760210302151,0.3083262,3773.1,3772.8,2.65048536]
[1760210302446,0.3083262,3773.1,3772.4,0.3007]
[1760210302447,0.3083262,3773.1,3773.0,2.65041081]
[1760210303093,0.3083262,3773.1,3772.9,2.65046326]
[1760210303258,0.3083262,3773.1,3773.0,2.65041081]
[1760210304958,0.3083262,3773.3,3773.0,2.97761491]
[1760210305298,0.3083262,3773.3,3773.2,2.65027032]
[1760210307071,0.001,3773.7,3772.1,0.3007]
[1760210307072,0.3083262,3773.0,3772.1,0.3007]
[1760210307276,0.3083262,3773.0,3772.9,2.65048106]
[1760210307760,0.3083262,3773.0,3772.5,0.132]
[1760210307964,0.3083262,3772.6,3772.5,2.78276209]
[1760210308376,0.001,3773.7,3772.5,0.84406637]
[1760210308377,0.3083262,3772.7,3772.5,0.84406637]
[1760210308578,0.3083262,3772.7,3772.6,2.65069183]
[1760210308753,20.60697723,3773.6,3772.1,2.65098222]
[1760210308754,0.3083262,3773.0,3772.9,2.65048106]
[1760210309185,0.3083262,3773.0,3772.9,2.95118106]
[1760210309373,0.3083262,3773.3,3773.2,2.65027032]
[1760210309898,0.3083262,3773.6,3773.5,2.65005415]
[1760210310095,0.3083262,3773.6,3771.8,2.65120598]
[1760210310096,0.3083262,3773.2,3773.1,2.65033993]
[1760210310449,0.3083262,3773.2,3772.4,2.6508235]
[1760210310450,0.3083262,3773.2,3773.0,2.65040993]
[1760210310774,0.3083262,3772.9,3772.8,2.65049914]
[1760210312065,0.3083262,3772.9,3772.2,0.3007]
[1760210312355,0.3083262,3772.5,3771.2,0.3007]
[1760210312682,0.3083262,3771.9,3771.2,0.3007]
[1760210313000,0.3083262,3771.9,3771.8,2.65125404]
[1760210314560,0.3083262,3772.1,3772.0,2.65111346]
[1760210315086,0.3083262,3772.3,3772.2,2.6509729]
[1760210315978,0.03268517,3772.8,3772.2,3.18118154]
[1760210316303,0.663,3775.0,3771.8,2.6512317]
[1760210316304,0.4699,3773.7,3772.3,2.95155266]
[1760210316507,0.03268517,3773.6,3771.9,2.65118375]
[1760210316694,2.6826937,3773.6,3772.7,2.65055901]
[1760210317015,2.6826937,3773.6,3772.5,2.6507424]
[1760210317211,2.68269283,3773.6,3772.6,2.65063659]
[1760210317376,0.03268517,3773.6,3772.9,2.65045893]
[1760210317577,0.03268517,3773.6,3773.0,2.65039873]
[1760210317813,0.03268517,3773.6,3772.8,0.02650551]
[1760210318107,0.03268517,3773.6,3772.4,2.65083236]
[1760210318308,0.132,3773.2,3773.1,2.6502822]
[1760210320509,0.132,3773.2,3772.6,2.78263916]
[1760210320510,0.001,3773.7,3773.4,2.65007204]
[1760210320707,0.001,3773.7,3773.6,2.6499894]
[1760210321112,0.001,3773.7,3773.5,2.65003983]
[1760210321691,0.001,3773.7,3772.8,0.3007]
[1760210321692,0.4588,3773.6,3772.2,0.3007]
[1760210321921,0.03268517,3773.5,3771.8,0.3007]
[1760210322227,0.663,3773.4,3773.0,2.65040991]
[1760210322385,0.03268517,3773.3,3773.0,2.65040991]
[1760210322584,0.03268517,3773.3,3772.3,0.3007]
[1760210322585,0.49148517,3773.3,3772.6,2.65063485]
[1760210322832,0.49148517,3773.3,3772.5,2.65075918]
[1760210323047,2.6505595,3772.8,3771.9,2.65112504]
[1760210323244,0.49148517,3773.0,3772.3,2.65084012]
[1760210323410,0.49148517,3773.0,3772.1,2.65099026]
[1760210323811,2.65054414,3772.9,3772.0,2.65110371]
[1760210324126,0.03268517,3772.8,3772.1,2.65102555]
[1760210324329,2.68325252,3772.8,3772.0,2.65111346]
[1760210324496,2.65063575,3772.7,3771.9,2.65116733]
[1760210324698,0.03268517,3772.6,3771.7,2.65126349]
[1760210325021,0.03268517,3772.6,3769.8,5.88829674]
[1760210325022,0.4588,3772.5,3770.6,3.11130396]
[1760210325325,2.41148517,3773.0,3771.8,2.65120812]
[1760210325622,0.2324,3771.9,3770.7,2.65202747]
[1760210325826,0.2324,3771.9,3770.6,0.002]
[1760210325827,0.6912,3771.9,3770.6,0.002]
[1760210326018,0.03268517,3772.2,3770.7,0.3007]
[1760210326193,0.49148517,3772.4,3771.5,2.65139903]
[1760210326395,0.49148517,3772.4,3771.0,0.3007]
[1760210326603,3.14231797,3772.4,3771.5,2.65143934]
[1760210327129,2.65090323,3772.3,3771.5,2.65143934]
[1760210327314,0.03268517,3772.2,3771.6,2.65139409]
[1760210327627,0.4588,3772.4,3771.5,2.651456]
[1760210327628,2.65090853,3772.3,3771.5,2.651456]
[1760210327813,0.03268517,3772.2,3771.5,2.651456]
[1760210328122,3.10964409,3772.4,3771.0,0.3007]
[1760210328123,0.03268517,3772.3,3771.0,0.3007]
[1760210328324,0.03268517,3772.3,3771.3,2.65160413]
[1760210328511,2.683377,3772.6,3771.3,2.65160413]
[1760210328714,2.65076209,3772.5,3771.3,2.65160413]
[1760210328913,2.6509729,3772.2,3771.3,2.65160217]
[1760210329226,0.49148517,3772.1,3770.6,0.002]
[1760210329427,2.65111346,3772.0,3770.6,0.002]
[1760210329720,0.03268517,3771.9,3771.1,2.65168228]
[1760210329893,0.03268517,3771.9,3771.0,2.65179675]
[1760210330094,0.03268517,3771.9,3771.3,2.65159239]
[1760210330530,0.03268517,3772.0,3771.1,2.65174617]
[1760210330734,0.03268517,3772.0,3771.4,2.65153114]
[1760210331118,0.03268517,3772.0,3771.3,2.65159441]
[1760210331317,2.68380174,3772.0,3771.1,2.65169412]
[1760210331530,0.2324,3771.9,3771.2,2.65164833]
[1760210331829,0.132,3771.5,3771.3,2.65159479]
[1760210332033,0.132,3771.5,3771.2,2.65166868]
[1760210332228,0.132,3771.5,3770.9,0.132]
[1760210332442,0.132,3771.5,3770.6,0.002]
[1760210332443,0.4588,3771.5,3770.6,0.002]
[1760210332738,2.65202747,3770.7,3770.6,0.002]
[1760210333029,0.69568517,3770.7,3770.6,0.002]
[1760210333194,1.15448517,3770.7,3770.6,0.002]
[1760210333699,0.663,3770.7,3770.6,0.002]
[1760210333904,1.1218,3770.7,3770.6,0.002]
[1760210334235,3.77382747,3770.7,3770.6,0.002]
[1760210334432,24.41348987,3770.7,3770.6,0.002]
[1760210334633,24.41348987,3770.7,3769.6,4.87]
[1760210334634,2.65230883,3770.3,3769.6,4.87]
[1760210334837,0.03268517,3770.3,3769.6,4.87]
[1760210335038,3.143794,3770.3,3769.6,4.87]
[1760210335729,3.777394,3770.3,3769.6,4.87]
[1760210337338,3.143794,3770.3,3769.6,4.87]
[1760210337736,0.49148517,3770.3,3769.6,4.87]
[1760210337936,0.49148517,3770.3,3769.7,2.65270288]
[1760210338135,0.49148517,3770.3,3769.8,2.65265443]
[1760210338352,0.663,3770.4,3770.1,2.65243385]
[1760210338353,0.69568517,3770.4,3770.1,2.65243385]
[1760210338535,0.663,3770.4,3770.2,0.26744338]
[1760210338844,0.663,3770.4,3770.3,2.65230883]
[1760210340410,0.663,3770.4,3770.2,0.002]
[1760210341015,0.4661,3773.3,3770.3,0.17892308]
[1760210341253,0.663,3773.5,3770.4,0.3027]
[1760210341254,0.663,3772.6,3770.4,0.3027]
[1760210341446,0.03268517,3772.5,3770.4,0.3027]
[1760210341646,2.65097912,3772.2,3771.1,2.65168751]
[1760210341820,2.65097912,3772.2,3770.4,2.95493378]
[1760210341821,0.03268517,3772.1,3771.2,2.65161525]
[1760210342149,0.4671,3772.3,3771.2,0.26516153]
[1760210342150,0.49978517,3772.3,3771.2,0.26516153]
[1760210342446,0.49978517,3772.3,3771.5,2.65144556]
[1760210342614,0.03368517,3772.3,3771.8,2.65124078]
[1760210342813,0.001,3772.3,3772.0,2.65111346]
[1760210343017,0.001,3772.3,3772.2,2.6509729]
[1760210343547,0.001,3772.3,3772.2,2.9536729]
[1760210343716,0.001,3772.3,3772.2,3.51415154]
[1760210343913,0.001,3772.3,3772.2,3.54066126]
[1760210344350,0.001,3772.3,3772.2,3.51415154]
[1760210344645,0.001,3772.3,3772.2,2.6509729]
[1760210345229,0.001,3772.3,3772.2,2.9536729]
[1760210345755,0.001,3772.3,3772.2,2.98018262]
[1760210345958,0.663,3773.5,3773.4,2.65012985]
[1760210346319,0.663,3773.5,3773.4,2.95282985]
[1760210346616,0.663,3773.5,3773.4,3.51578579]
[1760210346823,0.03268517,3774.8,3773.7,2.64991917]
[1760210347069,2.64837733,3775.9,3773.5,0.32920059]
[1760210347252,2.64864747,3775.6,3773.7,2.64991917]
[1760210347453,0.03268517,3775.5,3773.5,0.4531]
[1760210347627,20.60697723,3775.4,3773.5,0.4531]
[1760210347833,0.132,3774.2,3773.8,2.64984599]
[1760210348023,0.132,3774.2,3773.7,2.6499179]
[1760210348224,0.132,3774.2,3774.1,2.64963832]
[1760210348553,0.132,3774.4,3774.1,2.64963832]
[1760210348757,0.132,3774.4,3773.7,2.64986072]
[1760210348758,0.132,3774.4,3774.3,2.64949792]
[1760210348926,0.03268517,3775.2,3774.4,2.64936907]
[1760210348927,0.132,3774.6,3774.4,2.64936907]
[1760210349128,0.03268517,3775.2,3773.5,0.3027]
[1760210349357,2.64902629,3775.0,3774.1,2.64960857]
[1760210349568,0.03268517,3774.9,3774.1,2.64960857]
[1760210349742,0.03268517,3774.9,3771.0,2.36181326]
[1760210349743,0.4661,3774.8,3772.8,0.3027]
[1760210350052,1.92,3775.3,3772.0,2.65107239]
[1760210350053,0.03268517,3775.2,3774.3,2.64945761]
[1760210350250,2.6816091,3775.2,3774.3,2.64945761]
[1760210350551,0.03268517,3775.2,3774.6,2.64928293]
[1760210350754,0.4661,3775.6,3774.7,0.02649217]
[1760210350925,0.03268517,3775.4,3774.5,2.64934778]
[1760210351125,0.03268517,3775.4,3774.8,2.6491226]
[1760210351354,0.03268517,3775.4,3773.1,0.3027]
[1760210351355,20.60697723,3775.2,3773.1,0.3027]
[1760210351559,2.64900662,3775.0,3773.3,0.3103317]
[1760210351854,24.84890783,3775.7,3772.8,0.4531]
[1760210351855,2.64935895,3774.5,3772.8,0.4531]
[1760210352078,2.64887796,3775.2,3773.5,2.65000332]
[1760210352079,3.148225,3774.4,3773.5,2.65000332]
[1760210352223,0.4661,3774.3,3772.1,0.3027]
[1760210352568,0.2277,3775.7,3774.8,2.64910751]
[1760210352869,0.03268517,3775.6,3775.3,2.64878631]
[1760210353069,0.03268517,3776.1,3775.0,2.64894549]
[1760210353226,0.2277,3775.9,3775.1,2.64893566]
[1760210353474,0.03268517,3776.0,3774.8,0.3027]
[1760210353673,0.03268517,3776.0,3774.9,2.64907679]
[1760210353874,0.03268517,3776.0,3775.6,2.64856655]
[1760210354075,0.69568517,3776.2,3775.7,2.64851238]
[1760210354316,0.663,3776.2,3775.2,0.3027]
[1760210354475,0.663,3776.2,3775.3,2.64879612]
[1760210354675,0.663,3776.2,3776.0,2.64829307]
[1760210354917,0.663,3776.2,3775.2,0.59785884]
[1760210355123,0.663,3776.2,3775.2,0.3027]
[1760210355318,0.663,3776.2,3776.1,2.64823495]
[1760210356218,0.663,3776.2,3776.1,2.95093495]
[1760210356810,0.663,3776.2,3775.6,0.3027]
[1760210357006,0.663,3776.2,3775.8,2.64843778]
[1760210357234,0.663,3776.2,3775.7,2.64851534]
[1760210357529,0.663,3776.2,3775.8,2.64842981]
[1760210357729,0.663,3776.2,3775.1,0.3027]
[1760210357730,0.663,3776.2,3775.7,2.64851241]
[1760210358030,0.663,3776.2,3776.1,2.64823495]
[1760210358999,0.664,3776.2,3776.1,2.64823495]
[1760210359322,0.664,3776.2,3776.1,3.08293495]
[1760210362326,0.664,3776.2,3776.1,0.132]
[1760210362701,0.664,3776.2,3775.0,0.3027]
[1760210362903,0.664,3776.2,3775.7,0.132]
[1760210363229,0.664,3776.2,3776.1,2.64823495]
[1760210363411,0.664,3776.2,3776.1,0.3027]
[1760210363597,0.664,3776.2,3776.1,2.95093495]
[1760210364203,0.664,3776.2,3774.9,3.28267075]
[1760210364204,0.664,3776.2,3775.6,0.3027]
[1760210364410,0.664,3776.2,3775.6,0.5978363]
[1760210364608,0.664,3776.2,3776.1,2.64823495]
[1760210365530,0.664,3776.2,3776.1,2.97741729]
[1760210365733,0.664,3776.2,3776.1,2.95093495]
[1760210366335,0.001,3776.2,3776.1,2.97741729]
[1760210366534,0.001,3776.2,3776.1,3.51351382]
[1760210367608,0.001,3776.2,3776.1,2.95093495]
[1760210367810,2.64823495,3776.1,3774.3,2.64949792]
[1760210368036,0.001,3776.2,3772.1,0.002]
[1760210368037,0.001,3776.2,3774.4,0.32919427]
[1760210368223,1.92,3776.0,3774.4,0.3027]
[1760210368403,0.03268517,3775.9,3775.1,2.64892381]
[1760210368604,0.03268517,3775.9,3774.4,0.3027]
[1760210368605,0.26038517,3775.9,3774.4,0.3027]
[1760210368954,0.26038517,3775.9,3774.1,2.64963557]
[1760210368955,2.64899817,3775.1,3774.1,2.64963557]
[1760210369242,0.03268517,3775.0,3773.8,0.3027]
[1760210369449,0.03268517,3775.0,3773.9,2.64977874]
[1760210369600,0.4716,3774.9,3773.3,0.3027]
[1760210369800,0.03268517,3774.8,3773.6,2.64994578]
[1760210370015,1.92,3774.6,3773.7,2.64991085]
[1760210370316,2.6821092,3774.5,3773.4,2.65012985]
[1760210370504,0.03268517,3774.5,3773.5,2.65002458]
[1760210371015,2.68207941,3774.5,3773.6,2.64998769]
[1760210371217,0.03268517,3774.5,3773.4,0.54507838]
[1760210371417,0.03268517,3774.8,3773.4,2.65011391]
[1760210371909,2.64940974,3774.5,3773.6,2.64992093]
[1760210372108,0.03268517,3774.4,3773.6,2.64992093]
[1760210372310,0.50428517,3774.4,3772.9,0.4531]
[1760210372509,1.92,3774.2,3772.0,0.3027]
[1760210372708,1.92,3774.2,3771.8,2.65319399]
[1760210372709,2.64949792,3774.3,3772.2,2.65096779]
[1760210372710,1.92,3773.9,3772.2,2.65096779]
[1760210372911,0.71978517,3773.8,3772.1,0.002]
[1760210373131,5.649932,3773.7,3772.1,0.002]
[1760210373444,4.7029729,3772.2,3772.1,0.002]
[1760210373741,5.2339729,3772.2,3772.1,0.002]
[1760210374043,5.7055729,3772.2,3772.1,0.002]
[1760210375041,2.65118375,3771.9,3771.8,0.002]
[1760210375230,2.65125404,3771.8,3769.7,2.65271217]
[1760210375544,2.0564,3771.6,3769.6,4.87]
[1760210375753,0.03268517,3771.5,3769.6,4.87]
[1760210375955,0.4716,3771.4,3769.7,0.0265273]
[1760210376173,1.92,3770.9,3769.9,2.65257929]
[1760210376442,4.57230883,3770.3,3769.6,4.87]
[1760210376741,1.95268517,3770.3,3769.6,4.87]
[1760210376940,2.42428517,3770.3,3769.6,4.87]
[1760210377460,0.03268517,3770.4,3769.8,2.65265894]
[1760210377749,0.03268517,3770.4,3769.9,2.65252928]
[1760210377958,0.03268517,3770.7,3770.1,2.65444945]
[1760210378111,0.03268517,3771.2,3770.1,2.65444945]
[1760210378310,0.03268517,3771.2,3770.1,0.002]
[1760210378311,1.92,3770.9,3770.1,0.002]
[1760210378555,0.03268517,3770.8,3770.1,0.02852449]
[1760210378721,0.03268517,3771.2,3770.1,0.002]
[1760210378919,0.4716,3771.7,3770.6,2.65203453]
[1760210379161,0.03268517,3771.6,3770.6,3.18249129]
[1760210379458,0.03268517,3771.6,3770.6,3.18248775]
[1760210379743,2.68408564,3771.6,3770.3,2.65227185]
[1760210379945,0.03268517,3771.6,3770.2,0.002]
[1760210380256,2.65154095,3771.4,3770.4,2.6522315]
[1760210380463,0.47218517,3771.3,3770.2,0.002]
[1760210380759,1.92,3771.0,3770.2,0.002]
[1760210380930,0.03268517,3770.9,3770.2,0.002]
[1760210381113,3.0915265,3770.8,3770.2,0.002]
[1760210381316,2.68471543,3770.7,3770.2,0.002]
[1760210381857,3.09161904,3770.6,3770.2,0.002]
[1760210382053,0.03268517,3770.5,3770.2,0.002]
[1760210382344,0.663,3772.2,3770.2,0.002]
[1760210382345,0.4395,3770.9,3770.2,0.002]
[1760210382556,0.4395,3771.4,3770.3,2.65230883]
[1760210382858,1.92,3771.1,3770.2,2.65437057]
[1760210383015,0.03268517,3771.1,3770.3,0.02652308]
[1760210383217,1.92,3771.5,3770.5,2.65211056]
[1760210383555,0.663,3772.2,3770.3,0.132]
[1760210383556,0.132,3771.0,3770.3,0.132]
[1760210383719,0.132,3771.0,3770.3,2.78428627]
[1760210383916,0.4395,3770.9,3770.3,0.132]
[1760210384125,0.47218517,3770.9,3770.2,0.002]
[1760210384330,0.47218517,3770.9,3770.3,2.65229689]
[1760210384934,0.03268517,3770.9,3770.2,0.002]
[1760210385150,1.92,3771.4,3770.5,2.65214548]
[1760210385454,0.03268517,3771.3,3770.2,2.6543174]
[1760210385656,2.65187827,3771.0,3770.2,0.002]
[1760210385860,2.65197718,3770.8,3770.2,0.002]
[1760210386025,0.03268517,3770.7,3770.2,0.002]
[1760210386228,2.68472325,3770.7,3770.2,0.002]
[1760210386428,0.4395,3770.6,3770.2,0.002]
[1760210386729,2.68472325,3770.7,3770.2,0.002]
[1760210386730,0.03268517,3770.7,3770.2,0.002]
[1760210386924,2.3595,3771.2,3770.3,2.65224897]
[1760210387170,0.03268517,3771.1,3770.2,0.002]
[1760210387689,0.4395,3771.8,3770.2,0.02852379]
[1760210387993,0.7978734,3773.4,3770.2,0.02852379]
[1760210387994,0.03268517,3771.7,3770.2,0.002]
[1760210388139,3.31397893,3772.2,3771.3,2.6515464]
[1760210388345,3.31397893,3772.2,3771.0,0.02651816]
[1760210388346,3.12323822,3772.1,3771.0,0.02651816]
[1760210388545,0.47218517,3772.1,3770.2,0.02852379]
[1760210388770,0.47218517,3772.1,3771.3,2.6515894]
[1760210389169,0.47218517,3772.1,3771.1,2.67825243]
[1760210389170,0.47218517,3772.1,3771.4,2.65150444]
[1760210389341,0.03268517,3772.1,3771.5,2.65145748]
[1760210389663,0.03268517,3772.1,3771.6,2.65138448]
[1760210389982,0.663,3772.2,3771.6,0.53029173]
[1760210390270,0.663,3772.2,3771.7,2.65129225]
[1760210390473,0.663,3772.2,3770.9,0.3067]
[1760210390680,3.900514,3772.0,3768.8,2.65336361]
[1760210390938,1.92,3771.7,3769.8,2.65461733]
[1760210391073,3.31399187,3772.2,3769.8,0.002]
[1760210391074,0.663,3772.2,3769.8,0.002]
[1760210391277,0.663,3772.2,3770.3,2.95900846]
[1760210391278,0.69568517,3772.2,3770.3,2.95900846]
[1760210391454,1.92,3772.1,3770.5,2.65216814]
[1760210391649,0.03268517,3772.0,3771.4,2.65151363]
[1760210391848,0.663,3772.2,3771.2,2.65167553]
[1760210392181,3.31399313,3772.2,3771.2,2.65167553]
[1760210392360,1.95268517,3772.1,3771.3,2.65158968]
[1760210392560,1.95268517,3772.1,3771.4,2.65153105]
[1760210392862,2.68375529,3772.1,3771.1,2.65172049]
[1760210393057,2.65131788,3771.8,3770.4,0.29895323]
[1760210393380,2.65140037,3771.6,3770.7,2.65196624]
[1760210393577,0.03268517,3771.5,3770.7,2.65196624]
[1760210393875,0.47218517,3771.5,3770.7,2.65200323]
[1760210394080,0.132,3771.1,3770.7,2.65200323]
[1760210394282,0.132,3771.1,3770.5,2.78416791]
[1760210394283,0.132,3771.1,3770.6,2.65208801]
[1760210394445,0.132,3771.1,3770.5,0.132]
[1760210394446,0.132,3771.1,3770.7,2.65201615]
[1760210394777,0.132,3771.1,3770.5,0.132]
[1760210394959,0.132,3771.1,3770.7,2.65200312]
[1760210395277,0.132,3771.4,3770.8,3.08887304]
[1760210395485,0.03268517,3772.0,3771.1,2.65170026]
[1760210395779,0.132,3771.8,3771.2,0.132]
[1760210396077,0.132,3771.8,3771.3,2.65160554]
[1760210396277,0.132,3771.8,3771.2,0.132]
[1760210396581,0.133,3771.8,3771.6,2.6513878]
[1760210396886,0.133,3771.8,3771.5,2.65144656]
[1760210397091,0.133,3771.8,3771.5,2.651456]
[1760210397449,0.133,3771.8,3771.3,2.65153664]
[1760210397649,0.133,3771.8,3771.2,2.78366764]
[1760210397880,0.133,3771.8,3771.2,0.132]
[1760210398081,0.47218517,3771.7,3770.2,0.002]
[1760210398286,0.001,3771.8,3770.3,2.65230883]
[1760210398510,0.03368517,3771.8,3770.4,0.29630088]
[1760210398809,0.03368517,3771.8,3770.2,0.002]
[1760210398810,20.0764907,3771.1,3770.2,0.002]